bitfinex-derivatives/quotes_BTCF0:USTF0_20251023
["timestamp","ask_amount","ask_price","bid_price","bid_amount"]
[1761230425713,0.33592723,109760.0,109750.0,0.1351511]
[1761230425906,0.66236723,109760.0,109750.0,0.1351511]
[1761230426606,0.66236553,109760.0,109750.0,0.1351511]
[1761230427706,0.57228273,109760.0,109750.0,0.1351511]
[1761230427907,0.57228273,109760.0,109750.0,0.14053697]
[1761230428407,0.66336553,109760.0,109750.0,0.04944587]
[1761230428604,0.66336553,109760.0,109750.0,0.14053697]
[1761230429207,0.23251273,109760.0,109750.0,0.14053697]
[1761230429408,0.64979553,109760.0,109750.0,0.14053697]
[1761230429606,0.64979553,109760.0,109750.0,0.04406]
[1761230429907,0.64979553,109760.0,109740.0,0.14824108]
[1761230430212,0.32322383,109750.0,109740.0,0.06764074]
[1761230430605,0.23213273,109750.0,109740.0,0.17155014]
[1761230431213,0.32322383,109750.0,109740.0,0.17155014]
[1761230431711,0.1363611,109750.0,109740.0,0.17155014]
[1761230431906,0.1373611,109750.0,109740.0,0.22155014]
[1761230432113,0.32422383,109750.0,109740.0,0.17155014]
[1761230432812,0.23313273,109750.0,109740.0,0.17155014]
[1761230433013,0.32422383,109750.0,109740.0,0.17155014]
[1761230433911,0.001,109750.0,109740.0,0.86155014]
[1761230434115,0.001,109750.0,109740.0,0.86971634]
[1761230434911,0.001,109750.0,109740.0,0.89417047]
[1761230436214,0.21000273,109750.0,109740.0,0.60417047]
[1761230436418,0.21000273,109750.0,109740.0,0.75417047]
[1761230436610,0.21000273,109750.0,109740.0,0.20417047]
[1761230436611,0.23313273,109750.0,109740.0,0.20417047]
[1761230437017,0.23313273,109750.0,109740.0,0.25417047]
[1761230437213,0.23313273,109750.0,109740.0,0.31417047]
[1761230437415,0.02314,109750.0,109740.0,0.31417047]
[1761230437611,0.21000273,109750.0,109740.0,0.31417047]
[1761230437810,0.21000273,109750.0,109740.0,0.20417047]
[1761230438111,0.21000273,109750.0,109740.0,0.25417047]
[1761230438511,0.23313273,109750.0,109740.0,0.25417047]
[1761230438905,0.32422383,109750.0,109740.0,0.06760413]
[1761230439108,0.32422383,109750.0,109740.0,0.04619413]
[1761230439305,0.32422383,109750.0,109740.0,0.02174]
[1761230439512,0.32422383,109750.0,109740.0,0.02141]
[1761230439712,0.32422383,109750.0,109720.0,0.16996697]
[1761230439713,0.0586,109740.0,109720.0,0.16996697]
[1761230439916,0.55809273,109730.0,109720.0,0.19680258]
[1761230440317,0.55809273,109730.0,109720.0,0.13969151]
[1761230440818,0.55809273,109730.0,109720.0,0.16414564]
[1761230441118,0.55809273,109730.0,109720.0,0.16614564]
[1761230441318,0.55809273,109730.0,109720.0,0.14169151]
[1761230441516,0.55809273,109730.0,109720.0,0.16614564]
[1761230441719,0.55809273,109730.0,109720.0,0.05057561]
[1761230442017,0.55809273,109730.0,109720.0,0.14169161]
[1761230442614,0.55909273,109730.0,109720.0,0.14869161]
[1761230443515,1.14595546,109730.0,109720.0,0.009]
[1761230443721,0.04527,109710.0,109700.0,0.19595105]
[1761230443918,0.37123,109710.0,109700.0,0.22610411]
[1761230444112,0.55809273,109710.0,109700.0,0.25876105]
[1761230444918,0.55809273,109710.0,109700.0,0.26076105]
[1761230445122,0.55809273,109710.0,109700.0,0.52076105]
[1761230445514,0.37123,109710.0,109700.0,0.27076105]
[1761230445821,0.55909273,109710.0,109700.0,0.21676105]
[1761230446023,0.55909273,109710.0,109700.0,0.27676105]
[1761230446224,0.55909273,109710.0,109700.0,0.51676105]
[1761230446421,0.55909273,109710.0,109700.0,0.54476105]
[1761230446723,0.55909273,109710.0,109700.0,0.26576105]
[1761230447120,0.65021703,109710.0,109700.0,0.27111797]
[1761230447525,0.55909273,109710.0,109700.0,0.50111797]
[1761230448426,0.55909273,109710.0,109700.0,0.28111797]
[1761230448626,0.55909273,109710.0,109700.0,0.55111797]
[1761230448924,0.55909273,109710.0,109700.0,0.54111797]
[1761230449126,0.55909273,109710.0,109700.0,0.27111797]
[1761230449518,0.55909273,109710.0,109700.0,0.50111797]
[1761230449913,0.04627,109710.0,109700.0,0.22111797]
[1761230450121,0.37227,109710.0,109700.0,0.19666384]
[1761230450318,0.37227,109710.0,109700.0,0.22114912]
[1761230450513,0.327,109710.0,109700.0,0.22114912]
[1761230450723,0.37227,109710.0,109700.0,0.29666384]
[1761230450921,0.37227,109710.0,109700.0,0.52666384]
[1761230451127,0.37227,109710.0,109700.0,0.53666384]
[1761230451320,0.04627,109710.0,109700.0,0.53114479]
[1761230451522,0.04627,109710.0,109700.0,0.22114479]
[1761230451724,0.32425703,109710.0,109700.0,0.18848785]
[1761230451929,0.32425703,109710.0,109700.0,0.22567785]
[1761230452230,0.23313273,109710.0,109700.0,0.23848785]
[1761230452522,0.23313273,109710.0,109700.0,0.49848785]
[1761230452720,0.23313273,109710.0,109700.0,0.23848785]
[1761230452923,0.23313273,109710.0,109700.0,0.52848785]
[1761230453832,0.23313273,109710.0,109700.0,0.23848785]
[1761230454422,0.23313273,109710.0,109700.0,0.18848785]
[1761230454728,0.23313273,109710.0,109700.0,0.2140069]
[1761230454929,0.23313273,109710.0,109700.0,0.1640069]
[1761230455222,0.23313273,109710.0,109700.0,0.2140069]
[1761230455425,0.23313273,109710.0,109700.0,0.23848785]
[1761230455728,0.23313273,109710.0,109700.0,0.47848785]
[1761230456732,0.04627,109710.0,109700.0,0.47848785]
[1761230457137,0.02314,109710.0,109700.0,0.47848785]
[1761230457829,0.001,109710.0,109700.0,0.47848785]
[1761230458028,0.001,109710.0,109700.0,0.87848785]
[1761230458229,0.001,109710.0,109700.0,0.9359254]
[1761230460431,0.2835206,109740.0,109730.0,0.1489877]
[1761230460630,0.7590788,109740.0,109730.0,0.1489877]
[1761230460826,0.78660992,109740.0,109730.0,0.0911077]
[1761230461733,0.1379977,109730.0,109720.0,0.0911135]
[1761230461935,0.45131522,109730.0,109720.0,0.0911135]
[1761230462128,0.1379977,109730.0,109720.0,0.1352435]
[1761230462435,0.45131522,109730.0,109720.0,0.1352435]
[1761230462928,0.44728522,109730.0,109720.0,0.1989935]
[1761230463140,0.45131522,109730.0,109720.0,0.0911135]
[1761230463431,0.45331522,109730.0,109720.0,0.0911135]
[1761230463636,0.45331522,109730.0,109720.0,0.1352435]
[1761230464136,0.35817752,109730.0,109720.0,0.1989935]
[1761230464330,0.35817752,109730.0,109720.0,0.1489935]
[1761230464523,0.68417752,109730.0,109720.0,0.1989935]
[1761230464725,0.04486,109730.0,109720.0,0.4634266]
[1761230464921,0.002,109730.0,109720.0,0.4634266]
[1761230465128,0.35817752,109730.0,109720.0,0.4634266]
[1761230465326,0.35817752,109730.0,109720.0,0.2234266]
[1761230465737,0.35817752,109730.0,109720.0,0.1734266]
[1761230466035,0.44928522,109730.0,109720.0,0.1596766]
[1761230466233,0.1359677,109730.0,109720.0,0.1165466]
[1761230466422,0.44928522,109730.0,109720.0,0.0921135]
[1761230467031,0.44928522,109730.0,109720.0,0.0911135]
[1761230468339,0.44928522,109730.0,109720.0,0.1155466]
[1761230468636,0.44928522,109730.0,109720.0,0.1370466]
[1761230468835,0.46261522,109730.0,109720.0,0.1370466]
[1761230469032,0.146966,109720.0,109710.0,0.05701125]
[1761230469235,0.1339843,109710.0,109700.0,0.21500869]
[1761230469532,0.46029182,109710.0,109700.0,0.12826273]
[1761230469738,0.46029182,109710.0,109700.0,0.03713583]
[1761230469929,0.46029182,109710.0,109700.0,0.02907853]
[1761230470130,0.48478695,109710.0,109700.0,0.00455768]
[1761230470729,0.48478695,109710.0,109700.0,0.09569038]
[1761230471043,0.36886,109720.0,109710.0,0.1352544]
[1761230471229,0.36886,109720.0,109710.0,0.15976916]
[1761230471428,0.68217752,109720.0,109710.0,0.15976916]
[1761230471637,0.68217752,109720.0,109710.0,0.11563916]
[1761230472037,0.68217752,109720.0,109710.0,0.13713916]
[1761230472641,0.68217752,109720.0,109710.0,0.16176916]
[1761230472840,0.68217752,109720.0,109710.0,0.11863916]
[1761230473140,0.68217752,109720.0,109710.0,0.14013916]
[1761230474039,0.68217752,109720.0,109710.0,0.11863916]
[1761230474236,0.36886,109720.0,109710.0,0.16276916]
[1761230474432,0.68217752,109720.0,109710.0,0.16276916]
[1761230475533,0.36886,109720.0,109710.0,0.16276916]
[1761230475734,0.68217752,109720.0,109710.0,0.16276916]
[1761230476241,0.68217752,109720.0,109710.0,0.14013916]
[1761230477443,0.77329362,109720.0,109710.0,0.11863916]
[1761230477628,0.77329362,109720.0,109710.0,0.02751476]
[1761230477827,1.2303787,109720.0,109710.0,0.003]
[1761230478041,1.19778875,109720.0,109710.0,0.003]
[1761230479030,1.19778875,109720.0,109710.0,0.0941243]
[1761230479541,1.19778875,109720.0,109710.0,0.003]
[1761230479937,1.2303787,109720.0,109710.0,0.003]
[1761230480542,1.20588357,109720.0,109710.0,0.003]
[1761230481045,1.20588357,109720.0,109700.0,0.00455768]
[1761230481046,0.1469743,109710.0,109700.0,0.00455768]
[1761230481244,0.48485617,109710.0,109700.0,0.00455768]
[1761230481735,0.51744612,109710.0,109700.0,0.00455768]
[1761230482337,0.48485617,109710.0,109700.0,0.00455768]
[1761230482543,0.4902269,109710.0,109700.0,0.00455768]
[1761230483129,0.4902269,109710.0,109680.0,0.12106442]
[1761230483130,0.1496309,109690.0,109680.0,0.12106442]
[1761230483334,0.78894842,109690.0,109680.0,0.16546442]
[1761230483938,0.78894842,109690.0,109680.0,0.14308442]
[1761230484143,0.78894842,109690.0,109680.0,0.16546442]
[1761230484936,0.77561842,109690.0,109680.0,0.18129442]
[1761230485136,0.68447752,109690.0,109680.0,0.23129442]
[1761230485430,0.78894842,109690.0,109680.0,0.16746442]
[1761230486138,0.69780752,109690.0,109680.0,0.16746442]
[1761230486345,0.77561842,109690.0,109680.0,0.15689966]
[1761230486533,0.78854842,109690.0,109680.0,0.14294966]
[1761230486841,0.77561842,109690.0,109680.0,0.15689966]
[1761230487741,0.78854842,109690.0,109680.0,0.14294966]
[1761230488953,0.78854842,109690.0,109680.0,0.15689966]
[1761230490350,0.78854842,109690.0,109680.0,0.05180046]
[1761230490845,0.78854842,109690.0,109680.0,0.0021009]
[1761230491045,0.78854842,109690.0,109680.0,0.06144489]
[1761230491251,0.68447752,109690.0,109680.0,0.21980885]
[1761230491546,0.1140676,109700.0,109690.0,0.0911409]
[1761230491745,0.4630276,109700.0,109690.0,0.1509609]
[1761230491953,0.77634512,109700.0,109690.0,0.1509609]
[1761230492140,0.4630276,109700.0,109690.0,0.1509609]
[1761230492447,0.4630276,109700.0,109690.0,0.2009609]
[1761230492448,0.77634512,109700.0,109690.0,0.2009609]
[1761230492648,0.77634512,109700.0,109690.0,0.1509609]
[1761230492847,0.37189,109700.0,109690.0,0.3009609]
[1761230493046,0.4630226,109700.0,109690.0,0.4709609]
[1761230493244,0.4650226,109700.0,109690.0,0.4709609]
[1761230493648,0.77834012,109700.0,109690.0,0.4909609]
[1761230493848,0.77834012,109700.0,109690.0,0.1509609]
[1761230494355,0.78285012,109700.0,109690.0,0.1509609]
[1761230495346,0.78285012,109700.0,109690.0,0.04587]
[1761230495546,0.77834012,109700.0,109690.0,0.2009608]
[1761230495936,0.68720752,109700.0,109690.0,0.2009608]
[1761230496142,0.37385,109700.0,109690.0,0.4509608]
[1761230496443,0.37385,109700.0,109690.0,0.50805371]
[1761230496836,0.002,109700.0,109690.0,0.90805371]
[1761230497039,0.07040159,109730.0,109720.0,0.1509359]
[1761230497246,0.1369575,109730.0,109720.0,0.1509359]
[1761230497548,0.78084502,109730.0,109720.0,0.1509359]
[1761230498052,0.77627502,109730.0,109720.0,0.1509359]
[1761230498940,0.77927502,109730.0,109720.0,0.1509359]
[1761230499136,0.78027502,109730.0,109720.0,0.1509359]
[1761230499352,0.4669575,109730.0,109720.0,0.1509359]
[1761230499542,0.78027502,109730.0,109720.0,0.1509359]
[1761230500046,0.77927502,109730.0,109720.0,0.1509359]
[1761230500247,0.77927502,109730.0,109720.0,0.1369859]
[1761230501050,0.78384502,109730.0,109720.0,0.1369859]
[1761230501251,0.78384502,109730.0,109720.0,0.0229]
[1761230501446,0.1498957,109720.0,109710.0,0.17541114]
[1761230501645,0.46321322,109720.0,109710.0,0.02297]
[1761230501847,0.136974,109710.0,109700.0,0.17541674]
[1761230502153,0.77625152,109710.0,109700.0,0.1509467]
[1761230503446,0.77625152,109710.0,109700.0,0.04587]
[1761230503640,0.77625152,109710.0,109700.0,0.1141023]
[1761230503845,0.1369823,109700.0,109690.0,0.20805487]
[1761230504048,0.45029982,109700.0,109690.0,0.20805487]
[1761230504249,0.45029982,109700.0,109690.0,0.22542814]
[1761230504250,0.35916752,109700.0,109690.0,0.22542814]
[1761230504444,0.35916752,109700.0,109690.0,0.17542814]
[1761230504643,0.45029982,109700.0,109690.0,0.22542814]
[1761230504839,0.85029982,109700.0,109690.0,0.02307535]
[1761230505046,0.149929,109680.0,109670.0,0.03262673]
[1761230505245,0.1370073,109670.0,109660.0,0.00455934]
[1761230505446,0.45032482,109670.0,109660.0,0.01824968]
[1761230505755,0.45032482,109670.0,109660.0,0.05824968]
[1761230506048,0.45032482,109670.0,109660.0,0.29824968]
[1761230506244,0.45042789,109670.0,109660.0,0.29824968]
[1761230506439,0.45042789,109670.0,109660.0,0.03455934]
[1761230506654,0.45042789,109670.0,109660.0,0.09437934]
[1761230506850,0.45042789,109670.0,109660.0,0.06437934]
[1761230507054,0.45042789,109670.0,109660.0,0.00455934]
[1761230507956,0.45242789,109670.0,109660.0,0.00455934]
[1761230508353,0.45242789,109670.0,109630.0,0.17307239]
[1761230508354,0.1370322,109640.0,109630.0,0.16968623]
[1761230508561,0.4415396,109640.0,109630.0,0.59759426]
[1761230508853,0.4415396,109640.0,109630.0,0.59759526]
[1761230509261,0.4415396,109640.0,109630.0,0.60090847]
[1761230509449,0.4415396,109640.0,109630.0,0.50971982]
[1761230510454,0.4415396,109640.0,109630.0,0.06263982]
[1761230510654,0.4415396,109640.0,109630.0,0.15383032]
[1761230510857,0.4415396,109640.0,109630.0,0.42383032]
[1761230511058,0.4425396,109640.0,109630.0,0.42983032]
[1761230511358,0.4425396,109640.0,109630.0,0.06863982]
[1761230511552,0.4425396,109640.0,109630.0,0.10863982]
[1761230511757,0.4425396,109640.0,109630.0,0.39983022]
[1761230511959,0.4425396,109640.0,109630.0,0.15983022]
[1761230512458,0.4425396,109640.0,109630.0,0.18983022]
[1761230512658,0.4425396,109640.0,109630.0,0.42983022]
[1761230513260,0.4425396,109640.0,109630.0,0.15983022]
[1761230513456,0.4425396,109640.0,109630.0,0.05518331]
[1761230513760,0.4554696,109640.0,109630.0,0.05518331]
[1761230513950,0.4554696,109640.0,109630.0,0.05187]
[1761230514147,0.4554696,109640.0,109630.0,0.02897]
[1761230514346,0.4554696,109640.0,109630.0,0.27897]
[1761230514560,0.4554696,109640.0,109630.0,0.05177]
[1761230514746,0.4554696,109640.0,109630.0,0.30177]
[1761230514951,0.4554696,109640.0,109630.0,0.05177]
[1761230515151,0.4554696,109640.0,109630.0,0.00498343]
[1761230515152,0.7815096,109640.0,109630.0,0.00498343]
[1761230515357,0.7815096,109640.0,109610.0,0.005]
[1761230515358,0.1466688,109620.0,109610.0,0.005]
[1761230515548,8.354e-05,109620.0,109610.0,0.33391437]
[1761230515949,0.35594106,109620.0,109610.0,0.24270727]
[1761230516150,0.35594106,109620.0,109610.0,0.34733362]
[1761230516356,0.33477106,109620.0,109610.0,0.34733362]
[1761230516854,0.02145354,109620.0,109610.0,0.34733362]
[1761230517352,8.354e-05,109620.0,109610.0,0.33391437]
[1761230517553,0.04262354,109620.0,109610.0,0.33391437]
[1761230518156,8.354e-05,109620.0,109610.0,0.33391437]
[1761230518855,8.354e-05,109620.0,109610.0,0.73391437]
[1761230519155,0.2868788,109650.0,109640.0,0.04438]
[1761230519358,0.47411762,109650.0,109640.0,0.08438]
[1761230519556,0.1337212,109640.0,109630.0,0.1355656]
[1761230519758,0.22977882,109640.0,109630.0,0.2755656]
[1761230519950,0.22977882,109640.0,109630.0,0.4755656]
[1761230520150,0.22977882,109640.0,109630.0,0.3855656]
[1761230520352,0.32095962,109640.0,109630.0,0.1655656]
[1761230520548,0.32095962,109640.0,109630.0,0.3855656]
[1761230520964,0.32095962,109640.0,109630.0,0.29438]
[1761230521160,0.33688962,109640.0,109630.0,0.27438]
[1761230521360,0.33688962,109640.0,109630.0,0.3655686]
[1761230521960,0.33688962,109640.0,109630.0,0.28438]
[1761230522158,0.33688902,109640.0,109630.0,0.1655686]
[1761230522460,0.33688902,109640.0,109630.0,0.3855686]
[1761230522661,0.33688902,109640.0,109630.0,0.1355686]
[1761230522849,0.33688902,109640.0,109630.0,0.04438]
[1761230523355,0.23277882,109640.0,109630.0,0.4755686]
[1761230523557,0.003,109640.0,109630.0,0.4755686]
[1761230524152,0.003,109640.0,109630.0,0.8755686]
[1761230524861,0.22977882,109650.0,109640.0,0.1492202]
[1761230525159,0.22977882,109650.0,109640.0,0.1792202]
[1761230525353,0.22977882,109650.0,109640.0,0.1492202]
[1761230525548,0.32095092,109650.0,109620.0,0.1264345]
[1761230525863,0.1337121,109650.0,109640.0,0.1355604]
[1761230526064,0.1337121,109650.0,109640.0,0.4155604]
[1761230526357,0.1337121,109650.0,109640.0,0.02158]
[1761230526562,0.1337204,109640.0,109630.0,0.135564]
[1761230526951,0.32095922,109640.0,109630.0,0.435564]
[1761230527260,0.32095922,109640.0,109630.0,0.175564]
[1761230527660,0.04254,109620.0,109610.0,0.14391437]
[1761230527859,0.4632461,109640.0,109630.0,0.1355687]
[1761230528059,0.65048492,109640.0,109630.0,0.1655687]
[1761230528257,0.66341492,109640.0,109630.0,0.1355687]
[1761230528561,0.66341492,109640.0,109630.0,0.1655687]
[1761230528762,0.66341492,109640.0,109630.0,0.04438]
[1761230528961,0.84765374,109640.0,109630.0,0.04438]
[1761230529259,0.1337287,109630.0,109620.0,0.1492311]
[1761230529463,0.32096752,109630.0,109620.0,0.1792311]
[1761230529663,0.32096752,109630.0,109620.0,0.1492311]
[1761230529864,0.32096752,109630.0,109620.0,0.4292311]
[1761230530255,0.32096752,109630.0,109620.0,0.4392311]
[1761230530560,0.32096752,109630.0,109620.0,0.1792311]
[1761230530762,0.32096752,109630.0,109620.0,0.4092311]
[1761230531456,0.32096752,109630.0,109620.0,0.1492311]
[1761230531758,0.32096752,109630.0,109620.0,0.3992311]
[1761230532163,0.32396752,109630.0,109620.0,0.3992311]
[1761230532561,0.23277882,109630.0,109620.0,0.3992311]
[1761230532760,0.32396882,109630.0,109620.0,0.3992311]
[1761230533766,0.23277882,109630.0,109620.0,0.3992311]
[1761230534059,0.23277882,109630.0,109620.0,0.1792311]
[1761230534370,0.23277882,109630.0,109620.0,0.3792311]
[1761230534568,0.19023882,109630.0,109620.0,0.1492311]
[1761230534861,0.30279882,109630.0,109620.0,0.4592311]
[1761230535055,0.32396882,109630.0,109620.0,0.4592311]
[1761230535252,1e-08,109630.0,109620.0,1.04909665]
[1761230535457,0.26716877,109670.0,109660.0,0.149205]
[1761230535763,0.23457882,109670.0,109660.0,0.429205]
[1761230536663,0.23457882,109670.0,109660.0,0.439205]
[1761230536866,0.23957882,109670.0,109660.0,0.439205]
[1761230537056,0.33173552,109670.0,109660.0,0.179205]
[1761230537362,0.33173552,109670.0,109660.0,0.149205]
[1761230537556,0.33173552,109670.0,109660.0,0.469205]
[1761230537959,0.32873552,109670.0,109660.0,0.469205]
[1761230538158,0.32873552,109670.0,109660.0,0.18243002]
[1761230538354,0.32573552,109670.0,109660.0,0.15243002]
[1761230538667,0.32873552,109670.0,109660.0,0.39243002]
[1761230539068,0.32873552,109670.0,109660.0,0.15243002]
[1761230539367,0.32873552,109670.0,109660.0,0.26243002]
[1761230539668,0.23757882,109670.0,109660.0,0.24243002]
[1761230539966,0.32873552,109670.0,109660.0,0.24243002]
[1761230540363,0.05034,109670.0,109660.0,0.49243002]
[1761230540560,0.05034,109670.0,109660.0,0.30243002]
[1761230540561,0.23757882,109670.0,109660.0,0.30243002]
[1761230540756,0.23757882,109670.0,109660.0,0.15243002]
[1761230540960,0.23757882,109670.0,109660.0,0.40243002]
[1761230541964,0.05034,109670.0,109660.0,0.40243002]
[1761230542268,0.23757882,109670.0,109660.0,0.40243002]
[1761230542764,0.23757882,109670.0,109660.0,0.15243002]
[1761230542964,0.23757882,109670.0,109660.0,0.42243002]
[1761230543561,0.23757882,109670.0,109660.0,0.15243002]
[1761230543867,0.23757882,109670.0,109660.0,0.36243002]
[1761230544170,0.23757882,109670.0,109660.0,0.18243002]
[1761230544363,0.23757882,109670.0,109660.0,0.40243002]
[1761230544558,0.05034,109670.0,109660.0,0.38243002]
[1761230544757,0.23757882,109670.0,109660.0,0.43243002]
[1761230545160,0.0078,109670.0,109660.0,0.43243002]
[1761230545564,0.0078,109670.0,109660.0,1.15855002]
[1761230545764,0.0078,109670.0,109660.0,1.19121655]
[1761230546269,0.23071882,109690.0,109680.0,0.1494284]
[1761230546462,0.23071882,109690.0,109680.0,0.4294284]
[1761230546662,0.23071882,109690.0,109680.0,0.1494284]
[1761230546859,0.23071882,109690.0,109680.0,0.1894284]
[1761230547064,0.23071882,109690.0,109680.0,0.1494284]
[1761230547264,0.23071882,109690.0,109680.0,0.2994284]
[1761230547562,0.04748,109690.0,109680.0,0.1494284]
[1761230547761,0.23571882,109690.0,109680.0,0.3894284]
[1761230547968,0.32685892,109690.0,109680.0,0.3894284]
[1761230548165,0.32685892,109690.0,109680.0,0.1132984]
[1761230548466,0.1475624,109680.0,109670.0,0.0911524]
[1761230548667,0.1346367,109670.0,109660.0,0.15299492]
[1761230548871,0.32187552,109670.0,109660.0,0.39299492]
[1761230549173,0.32187552,109670.0,109660.0,0.15299492]
[1761230549174,0.04348,109670.0,109660.0,0.15299492]
[1761230549474,0.23071882,109670.0,109660.0,0.46299492]
[1761230549676,0.32187552,109670.0,109660.0,0.15299492]
[1761230549861,0.32187552,109670.0,109660.0,0.18299492]
[1761230550066,0.32187552,109670.0,109660.0,0.36299492]
[1761230550471,0.32187552,109670.0,109660.0,0.15299492]
[1761230550770,0.23071882,109670.0,109660.0,0.18299492]
[1761230550975,0.23071882,109670.0,109660.0,0.15299492]
[1761230551165,0.23071882,109670.0,109660.0,0.37299492]
[1761230551570,0.06479542,109720.0,109710.0,0.0911235]
[1761230551875,0.23071882,109730.0,109720.0,0.05828]
[1761230552270,0.23071882,109730.0,109720.0,0.1493952]
[1761230553370,0.23071882,109730.0,109720.0,0.1132652]
[1761230553570,0.23071882,109730.0,109720.0,0.1360652]
[1761230553772,0.23071882,109730.0,109720.0,0.41325438]
[1761230553773,0.20967882,109730.0,109720.0,0.41325438]
[1761230554167,0.55815882,109740.0,109730.0,0.1360568]
[1761230554474,0.55815882,109740.0,109730.0,0.14991598]
[1761230554475,0.55819882,109740.0,109730.0,0.14991598]
[1761230554777,0.57187882,109740.0,109730.0,0.14991598]
[1761230554983,0.38464,109740.0,109730.0,0.14991598]
[1761230555278,0.57187882,109740.0,109730.0,0.10496598]
[1761230555472,0.8757385,109740.0,109730.0,0.01385918]
[1761230555664,1.06297732,109740.0,109730.0,0.10496608]
[1761230556278,1.06397732,109740.0,109730.0,0.01385918]
[1761230556970,1.06497732,109740.0,109730.0,0.01385918]
[1761230557869,1.06397732,109740.0,109730.0,0.01385918]
[1761230558078,1.06597732,109740.0,109730.0,0.01385918]
[1761230558674,0.1346035,109720.0,109710.0,0.0911225]
[1761230558976,0.1346035,109720.0,109710.0,0.15031732]
[1761230558977,0.6517823,109720.0,109710.0,0.15031732]
[1761230560479,0.6517823,109720.0,109710.0,0.05919482]
[1761230560671,0.6517823,109720.0,109710.0,0.01424482]
[1761230561178,1.24336899,109720.0,109710.0,0.01424482]
[1761230562082,1.23902112,109720.0,109710.0,0.01424482]
[1761230562585,1.24102112,109720.0,109710.0,0.01424482]
[1761230563281,0.0911401,109690.0,109680.0,0.1044734]
[1761230563480,0.0911401,109690.0,109680.0,0.15382266]
[1761230563481,0.32185892,109690.0,109680.0,0.15382266]
[1761230564577,0.32185892,109690.0,109680.0,0.15782266]
[1761230565678,0.23071882,109690.0,109680.0,0.15382266]
[1761230566680,0.32185892,109690.0,109680.0,0.15382266]
[1761230568788,0.31091618,109690.0,109680.0,0.15382266]
[1761230569695,0.21977608,109690.0,109680.0,0.15382266]
[1761230570194,0.31091618,109690.0,109680.0,0.15382266]
[1761230570689,0.31091618,109690.0,109670.0,0.02432537]
[1761230570690,0.0950684,109680.0,109670.0,0.02432537]
[1761230570990,0.1346367,109670.0,109660.0,0.145205]
[1761230571184,0.1135967,109670.0,109660.0,0.34737]
[1761230571387,0.1135967,109670.0,109660.0,0.438535]
[1761230571588,0.32187552,109670.0,109660.0,0.158535]
[1761230571787,0.32187552,109670.0,109660.0,0.06737]
[1761230572692,0.32187552,109670.0,109660.0,0.1585351]
[1761230573998,0.32287552,109670.0,109660.0,0.06737]
[1761230575404,0.65011552,109670.0,109660.0,0.01835348]
[1761230575607,0.65011552,109670.0,109660.0,0.01835482]
[1761230575807,1.05011552,109670.0,109660.0,0.01835482]
[1761230576899,0.1340833,109650.0,109640.0,0.0587]
[1761230577203,0.32132212,109650.0,109640.0,0.0587]
[1761230577701,0.1468516,109640.0,109630.0,0.14101463]
[1761230577903,0.32133042,109640.0,109630.0,0.14101463]
[1761230579204,0.32233042,109640.0,109630.0,0.14801463]
[1761230579606,0.32233042,109640.0,109630.0,0.05682463]
[1761230579607,0.33509042,109640.0,109630.0,0.05682463]
[1761230579807,0.33509042,109640.0,109630.0,0.007]
[1761230580001,0.33509042,109640.0,109630.0,0.02945]
[1761230580197,0.33509042,109640.0,109630.0,0.007]
[1761230580409,0.33509042,109640.0,109630.0,0.05237]
[1761230580705,0.46176739,109640.0,109630.0,0.05237]
[1761230581094,0.46176739,109640.0,109630.0,0.007]
[1761230581808,0.46176739,109640.0,109630.0,0.05237]
[1761230582007,0.04391,109640.0,109630.0,0.14356]
[1761230582196,0.0921817,109640.0,109630.0,0.40356]
[1761230582402,0.1379824,109680.0,109640.0,0.01298]
[1761230582596,0.0911619,109670.0,109660.0,0.1495151]
[1761230582799,0.0911619,109670.0,109660.0,0.3895151]
[1761230583411,0.77521579,109680.0,109670.0,0.1365267]
[1761230583611,0.4613,109680.0,109670.0,0.1365267]
[1761230583812,0.77521579,109680.0,109670.0,0.1365267]
[1761230584610,0.77521579,109680.0,109670.0,0.04978257]
[1761230584807,0.0911567,109670.0,109660.0,0.05835]
[1761230585012,0.44798249,109670.0,109640.0,0.4883885]
[1761230585215,0.44798249,109670.0,109640.0,0.05835]
[1761230585216,0.1340833,109650.0,109640.0,0.05835]
[1761230585417,0.44799909,109650.0,109640.0,0.05835]
[1761230585599,0.44799909,109650.0,109640.0,0.04537]
[1761230585805,0.44799909,109650.0,109630.0,0.4253455]
[1761230585806,0.1468516,109640.0,109630.0,0.007]
[1761230586009,0.1468516,109640.0,109620.0,0.004561]
[1761230586010,0.1341,109630.0,109620.0,0.004561]
[1761230586307,0.44801579,109630.0,109620.0,0.004561]
[1761230587213,0.44801579,109630.0,109620.0,0.01798858]
[1761230587911,0.46166,109630.0,109620.0,0.07633858]
[1761230588116,0.77557579,109630.0,109620.0,0.062911]
[1761230589719,0.46166,109630.0,109620.0,0.049931]
[1761230589911,0.37047,109630.0,109620.0,0.4341093]
[1761230590113,0.46166,109630.0,109620.0,0.4241093]
[1761230591119,0.46166,109630.0,109620.0,0.062911]
[1761230591819,0.46166,109630.0,109620.0,0.049931]
[1761230592517,0.77557579,109630.0,109620.0,0.049931]
[1761230592919,0.77557579,109630.0,109620.0,0.027011]
[1761230593118,0.77557579,109630.0,109620.0,0.04041601]
[1761230593311,0.77557579,109630.0,109620.0,0.01796601]
[1761230595320,1.17557579,109630.0,109620.0,0.01796601]
[1761230596519,0.1341166,109610.0,109600.0,0.00011833]
[1761230596823,0.76629478,109610.0,109600.0,0.00011833]
[1761230597721,0.0912187,109600.0,109580.0,0.02701267]
[1761230598018,0.37007,109590.0,109580.0,0.15414427]
[1761230598217,0.4612933,109590.0,109580.0,0.15414427]
[1761230598522,0.35682579,109610.0,109600.0,0.04937]
[1761230598722,0.77547709,109610.0,109600.0,0.04937]
[1761230599017,0.77558974,109610.0,109600.0,0.06235]
[1761230599222,0.77566974,109610.0,109600.0,0.05835]
[1761230599609,0.140825,109600.0,109590.0,0.02432537]
[1761230599813,0.1341333,109590.0,109580.0,0.0704136]
[1761230600017,0.77548909,109590.0,109580.0,0.0704136]
[1761230600418,0.77548909,109590.0,109580.0,0.2016452]
[1761230600619,0.4615733,109590.0,109580.0,0.2116452]
[1761230600818,0.4615733,109590.0,109580.0,0.1616452]
[1761230601024,0.37035,109590.0,109580.0,0.1586452]
[1761230601615,0.4615732,109590.0,109580.0,0.1626452]
[1761230602115,0.77548899,109590.0,109580.0,0.1626452]
[1761230602321,0.68426579,109590.0,109580.0,0.1626452]
[1761230602520,0.4615732,109590.0,109580.0,0.2126452]
[1761230602715,0.4615732,109590.0,109580.0,0.1626452]
[1761230603219,0.4615732,109590.0,109580.0,0.23697057]
[1761230603418,0.4615732,109590.0,109580.0,0.18697057]
[1761230603821,0.37035,109590.0,109580.0,0.1626452]
[1761230604022,0.44852619,109600.0,109590.0,0.1341633]
[1761230604229,0.4620504,109600.0,109590.0,0.1341633]
[1761230604419,0.77596619,109600.0,109590.0,0.04294]
[1761230604623,0.78266619,109600.0,109590.0,0.02124]